[Event "The Schackveckan 2023: Göteborg open"]
[Site "Göteborgs schackcentrum, Vegagatan 20, Gothenburg, Sweden"]
[Date "2023.08.12"]
[Round "5.14"]
[White "Mohammed, Safian Haj"]
[Black "Eldh, Hjalmar"]
[Result "1-0"]
[TimeControl "15 minutes + 5 seconds per move from move one (Round 1 - 4) / 90 minutes + 30 seconds per move from move one (Round 5 - 8)"]
[WhiteFideId "1729276"]
[BlackFideId "1767968"]
[WhiteElo "1862"]
[BlackElo "1738"]

1. e4 {[%clk 01:19:11]} {[%emt 00:11:49]} e5 {[%clk 01:30:52]} {[%emt
00:00:08]} 2. Nf3 {[%clk 01:19:29]} {[%emt 00:00:12]} Nc6 {[%clk 01:31:08]}
{[%emt 00:00:13]} 3. Bb5 {[%clk 01:19:40]} {[%emt 00:00:20]} a6 {[%clk
01:31:28]} {[%emt 00:00:10]} 4. Ba4 {[%clk 01:20:05]} {[%emt 00:00:05]} Nf6
{[%clk 01:31:51]} {[%emt 00:00:07]} 5. d3 {[%clk 01:19:53]} {[%emt 00:00:42]}
b5 {[%clk 01:31:27]} {[%emt 00:00:54]} 6. Bb3 {[%clk 01:20:19]} {[%emt
00:00:05]} Bc5 {[%clk 01:31:09]} {[%emt 00:00:47]} 7. c3 {[%clk 01:20:29]}
{[%emt 00:00:20]} d6 {[%clk 01:31:25]} {[%emt 00:00:14]} 8. O-O {[%clk
01:20:39]} {[%emt 00:00:20]} Bg4 {[%clk 01:30:55]} {[%emt 00:00:59]} 9. h3
{[%clk 01:20:45]} {[%emt 00:00:24]} Bh5 {[%clk 01:31:11]} {[%emt 00:00:14]} 10.
Nbd2 {[%clk 01:21:11]} {[%emt 00:00:05]} O-O {[%clk 01:31:27]} {[%emt
00:00:14]} 11. Re1 {[%clk 01:21:22]} {[%emt 00:00:19]} Bb6 {[%clk 01:30:13]}
{[%emt 00:01:44]} 12. Nf1 {[%clk 01:21:19]} {[%emt 00:00:33]} h6 {[%clk
01:29:55]} {[%emt 00:00:48]} 13. Ng3 {[%clk 01:21:41]} {[%emt 00:00:08]} Bg6
{[%clk 01:30:20]} {[%emt 00:00:05]} 14. Be3 {[%clk 01:16:49]} {[%emt 00:05:22]}
Bxe3 {[%clk 01:26:58]} {[%emt 00:03:52]} 15. Rxe3 {[%clk 01:17:11]} {[%emt
00:00:08]} Na5 {[%clk 01:26:38]} {[%emt 00:00:50]} 16. Bc2 {[%clk 01:17:31]}
{[%emt 00:00:10]} c5 {[%clk 01:26:34]} {[%emt 00:00:34]} 17. Nh4 {[%clk
01:14:00]} {[%emt 00:04:00]} d5 {[%clk 01:23:02]} {[%emt 00:04:03]} 18. Nxg6
{[%clk 01:14:16]} {[%emt 00:00:14]} fxg6 {[%clk 01:23:26]} {[%emt 00:00:06]} 19.
exd5 {[%clk 01:13:10]} {[%emt 00:01:36]} Qxd5 {[%clk 01:23:35]} {[%emt
00:00:21]} 20. b4 {[%clk 01:13:16]} {[%emt 00:00:24]} Nc6 {[%clk 01:22:27]}
{[%emt 00:01:38]} 21. Bb3 {[%clk 01:12:47]} {[%emt 00:00:59]} c4 {[%clk
01:22:52]} {[%emt 00:00:05]} 22. dxc4 {[%clk 01:13:10]} {[%emt 00:00:07]} Qxd1+
{[%clk 01:22:13]} {[%emt 00:01:10]} 23. Rxd1 {[%clk 01:13:32]} {[%emt
00:00:07]} Kh7 {[%clk 01:22:30]} {[%emt 00:00:13]} 24. c5 {[%clk 01:12:34]}
{[%emt 00:01:27]} a5 {[%clk 01:22:02]} {[%emt 00:00:59]} 25. a3 {[%clk
01:09:50]} {[%emt 00:03:15]} Ra6 {[%clk 01:20:35]} {[%emt 00:01:56]} 26. Rd6
{[%clk 01:08:54]} {[%emt 00:01:25]} Ne8 {[%clk 01:19:30]} {[%emt 00:01:36]} 27.
Rd7 {[%clk 01:01:41]} {[%emt 00:07:43]} axb4 {[%clk 01:17:28]} {[%emt
00:02:33]} 28. cxb4 {[%clk 01:01:51]} {[%emt 00:00:20]} Nd4 {[%clk 01:17:17]}
{[%emt 00:00:38]} 29. Rb7 {[%clk 00:53:01]} {[%emt 00:09:22]} Nf6 {[%clk
01:15:04]} {[%emt 00:02:40]} 30. Bd1 {[%clk 00:47:31]} {[%emt 00:06:04]} Rfa8
{[%clk 01:09:46]} {[%emt 00:05:46]} 31. Rxe5 {[%clk 00:47:41]} {[%emt
00:00:22]} Rxa3 {[%clk 01:09:56]} {[%emt 00:00:19]} 32. Kh2 {[%clk 00:45:27]}
{[%emt 00:02:43]} Rd3 {[%clk 00:59:06]} {[%emt 00:11:20]} 33. Be2 {[%clk
00:40:29]} {[%emt 00:05:29]} Rb3 {[%clk 00:59:27]} {[%emt 00:00:09]} 34. Ree7
{[%clk 00:39:56]} {[%emt 00:01:03]} Rxb4 {[%clk 00:58:31]} {[%emt 00:01:26]} 35.
Rxg7+ {[%clk 00:40:15]} {[%emt 00:00:11]} Kh8 {[%clk 00:58:51]} {[%emt
00:00:08]} 36. Rxg6 {[%clk 00:40:05]} {[%emt 00:00:41]} Nxe2 {[%clk 00:57:24]}
{[%emt 00:01:58]} 37. Rxh6+ {[%clk 00:40:05]} {[%emt 00:00:31]} Kg8 {[%clk
00:57:38]} {[%emt 00:00:14]} 38. Nxe2 {[%clk 00:37:56]} {[%emt 00:02:39]} Ne4
{[%clk 00:57:40]} {[%emt 00:00:29]} 39. c6 {[%clk 00:37:45]} {[%emt 00:00:42]}
Nd6 {[%clk 00:57:22]} {[%emt 00:00:47]} 40. Rxd6 {[%clk 00:38:03]} {[%emt
00:00:12]} Rb2 {[%clk 00:57:42]} {[%emt 00:00:09]} 41. Nf4 {[%clk 00:36:58]}
{[%emt 00:01:35]} Rxf2 {[%clk 00:58:01]} {[%emt 00:00:12]} 42. Ne6 {[%clk
00:37:19]} {[%emt 00:00:09]} Rf6 {[%clk 00:57:27]} {[%emt 00:01:04]} 43. c7
{[%clk 00:37:04]} {[%emt 00:00:45]} Rc8 {[%clk 00:57:41]} {[%emt 00:00:16]} 44.
Rd8+ {[%clk 00:37:22]} {[%emt 00:00:12]} Kf7 {[%clk 00:58:06]} {[%emt
00:00:06]} 45. Ng5+ {[%clk 00:37:26]} {[%emt 00:00:25]} Ke7 {[%clk 00:58:32]}
{[%emt 00:00:04]} 46. Rxc8 {[%clk 00:37:43]} {[%emt 00:00:13]} b4 {[%clk
00:58:46]} {[%emt 00:00:16]} 47. Rh8 {[%clk 00:37:39]} {[%emt 00:00:34]} b3
{[%clk 00:59:09]} {[%emt 00:00:08]} 48. c8=Q+ {[%clk 00:37:55]} {[%emt
00:00:14]} Kd6 {[%clk 00:59:31]} {[%emt 00:00:07]} 49. Re8 {[%clk 00:37:51]}
{[%emt 00:00:33]} Kd5 {[%clk 00:59:47]} {[%emt 00:00:16]} 50. Rd7+ {[%clk
00:37:54]} {[%emt 00:00:26]} Rd6 {[%clk 01:00:11]} {[%emt 00:00:07]} 51. Rxd6+
{[%clk 00:38:02]} {[%emt 00:00:22]} Kxd6 {[%clk 01:00:35]} {[%emt 00:00:05]} 52.
Rd8+ {[%clk 00:38:14]} {[%emt 00:00:18]} Ke5 {[%clk 01:00:58]} {[%emt
00:00:07]} 53. Nf3+ {[%clk 00:38:33]} {[%emt 00:00:11]} Ke4 {[%clk 01:01:23]}
{[%emt 00:00:05]} 54. Qc4+ {[%clk 00:38:39]} {[%emt 00:00:24]} Ke3 {[%clk
01:01:45]} {[%emt 00:00:08]} 55. Qd4+ {[%clk 00:38:49]} {[%emt 00:00:20]} Ke2
{[%clk 01:02:08]} {[%emt 00:00:06]} 56. Re8+ {[%clk 00:39:13]} {[%emt
00:00:08]} Kf1 {[%clk 01:02:30]} {[%emt 00:00:07]} 57. Re1# {[%clk 00:39:38]}
{[%emt 00:00:04]} 1-0

[Event "The Schackveckan 2023: Göteborg open"]
[Site "Göteborgs schackcentrum, Vegagatan 20, Gothenburg, Sweden"]
[Date "2023.08.12"]
[Round "5.15"]
[White "Svensson, Leif"]
[Black "Al Saab, Ranny"]
[Result "1/2-1/2"]
[TimeControl "15 minutes + 5 seconds per move from move one (Round 1 - 4) / 90 minutes + 30 seconds per move from move one (Round 5 - 8)"]
[WhiteFideId "1702459"]
[BlackFideId "1768360"]
[WhiteElo "2038"]
[BlackElo "1598"]

1. d4 {[%clk 01:29:29]} {[%emt 00:01:31]} d5 {[%clk 01:30:57]} {[%emt
00:00:04]} 2. Nc3 {[%clk 01:29:53]} {[%emt 00:00:05]} Nf6 {[%clk 01:31:23]}
{[%emt 00:00:04]} 3. Bf4 {[%clk 01:30:16]} {[%emt 00:00:06]} a6 {[%clk
01:31:14]} {[%emt 00:00:41]} 4. e3 {[%clk 01:30:39]} {[%emt 00:00:06]} Bf5
{[%clk 01:31:35]} {[%emt 00:00:10]} 5. f3 {[%clk 01:30:52]} {[%emt 00:00:16]}
Nc6 {[%clk 01:30:44]} {[%emt 00:01:22]} 6. a3 {[%clk 01:30:51]} {[%emt
00:00:31]} e6 {[%clk 01:31:01]} {[%emt 00:00:14]} 7. g4 {[%clk 01:31:15]}
{[%emt 00:00:04]} Bg6 {[%clk 01:31:14]} {[%emt 00:00:19]} 8. h4 {[%clk
01:31:39]} {[%emt 00:00:04]} h6 {[%clk 01:31:05]} {[%emt 00:00:40]} 9. Bd3
{[%clk 01:30:53]} {[%emt 00:01:16]} Bxd3 {[%clk 01:31:18]} {[%emt 00:00:17]} 10.
Qxd3 {[%clk 01:31:16]} {[%emt 00:00:06]} Bd6 {[%clk 01:31:40]} {[%emt
00:00:09]} 11. Nge2 {[%clk 01:31:39]} {[%emt 00:00:07]} e5 {[%clk 01:30:40]}
{[%emt 00:01:31]} 12. Bg3 {[%clk 01:30:37]} {[%emt 00:01:29]} Qd7 {[%clk
01:27:03]} {[%emt 00:04:09]} 13. O-O-O {[%clk 01:28:42]} {[%emt 00:02:24]}
O-O-O {[%clk 01:27:19]} {[%emt 00:00:14]} 14. g5 {[%clk 01:27:29]} {[%emt
00:01:43]} hxg5 {[%clk 01:26:09]} {[%emt 00:01:40]} 15. hxg5 {[%clk 01:27:51]}
{[%emt 00:00:08]} Nh5 {[%clk 01:25:47]} {[%emt 00:00:52]} 16. Bf2 {[%clk
01:25:33]} {[%emt 00:02:47]} Ne7 {[%clk 01:16:28]} {[%emt 00:09:50]} 17. dxe5
{[%clk 01:22:48]} {[%emt 00:03:14]} Bxe5 {[%clk 01:16:01]} {[%emt 00:00:58]} 18.
f4 {[%clk 01:23:11]} {[%emt 00:00:06]} Bxc3 {[%clk 01:15:52]} {[%emt 00:00:40]}
19. Nxc3 {[%clk 01:23:33]} {[%emt 00:00:09]} g6 {[%emt 00:02:07]} 20. e4 {[%clk
01:14:17]} {[%emt 00:09:43]} Nxf4 {[%clk 01:09:21]} {[%emt 00:05:27]} 21. Qf3
{[%clk 01:14:37]} {[%emt 00:00:09]} Rxh1 {[%clk 01:06:39]} {[%emt 00:03:12]} 22.
Rxh1 {[%clk 01:15:00]} {[%emt 00:00:07]} Ne6 {[%clk 01:06:30]} {[%emt
00:00:39]} 23. exd5 {[%clk 01:07:20]} {[%emt 00:08:11]} Nxg5 {[%clk 01:04:26]}
{[%emt 00:02:34]} 24. Qf6 {[%clk 01:06:53]} {[%emt 00:00:55]} Nh3 {[%clk
00:58:45]} {[%emt 00:06:12]} 25. Rxh3 {[%clk 01:07:05]} {[%emt 00:00:17]} Qxh3
{[%clk 00:59:08]} {[%emt 00:00:08]} 26. Qxe7 {[%clk 01:07:25]} {[%emt
00:00:10]} Qf5 {[%clk 00:54:10]} {[%emt 00:05:29]} 27. Qe3 {[%clk 00:59:32]}
{[%emt 00:08:22]} b6 {[%clk 00:52:59]} {[%emt 00:01:43]} 28. Kb1 {[%clk
00:59:41]} {[%emt 00:00:20]} Rh8 {[%clk 00:49:57]} {[%emt 00:03:29]} 29. Bg3
{[%clk 00:58:32]} {[%emt 00:01:41]} g5 {[%clk 00:45:27]} {[%emt 00:05:01]} 30.
b3 {[%clk 00:54:37]} {[%emt 00:04:24]} f6 {[%clk 00:41:06]} {[%emt 00:04:51]}
31. Qe7 {[%clk 00:52:00]} {[%emt 00:03:04]} Qd7 {[%clk 00:37:27]} {[%emt
00:04:12]} 32. Qxf6 {[%clk 00:52:07]} {[%emt 00:00:23]} Rh1+ {[%clk 00:37:40]}
{[%emt 00:00:17]} 33. Kb2 {[%clk 00:52:27]} {[%emt 00:00:11]} g4 {[%clk
00:37:44]} {[%emt 00:00:26]} 34. d6 {[%clk 00:48:54]} {[%emt 00:04:02]} cxd6
{[%clk 00:36:40]} {[%emt 00:01:35]} 35. Bxd6 {[%clk 00:48:37]} {[%emt
00:00:46]} Rh3 {[%clk 00:35:51]} {[%emt 00:01:18]} 36. Qf8+ {[%clk 00:47:22]}
{[%emt 00:01:45]} Kb7 {[%clk 00:36:00]} {[%emt 00:00:23]} 37. Qb8+ {[%clk
00:45:10]} {[%emt 00:02:41]} Kc6 {[%clk 00:36:29]} {[%emt 00:00:02]} 38. Ne4
{[%clk 00:44:57]} {[%emt 00:00:40]} Re3 {[%clk 00:33:20]} {[%emt 00:03:41]} 39.
Qa8+ {[%clk 00:40:42]} {[%emt 00:04:45]} Qb7 {[%clk 00:33:12]} {[%emt
00:00:38]} 40. Qe8+ {[%clk 00:40:26]} {[%emt 00:00:44]} Qd7 {[%clk 00:32:55]}
{[%emt 00:00:49]} 41. Qa8+ {[%clk 00:33:02]} {[%emt 00:07:54]} Qb7 {[%clk
00:33:24]} {[%emt 00:00:02]} 42. Qe8+ {[%clk 00:29:01]} {[%emt 00:04:30]}
1/2-1/2

[Event "The Schackveckan 2023: Göteborg open"]
[Site "Göteborgs schackcentrum, Vegagatan 20, Gothenburg, Sweden"]
[Date "2023.08.12"]
[Round "5.16"]
[White "Havner, Arvid"]
[Black "Bergholtz, Karl"]
[Result "1-0"]
[TimeControl "15 minutes + 5 seconds per move from move one (Round 1 - 4) / 90 minutes + 30 seconds per move from move one (Round 5 - 8)"]
[WhiteFideId "1769308"]
[BlackFideId "1756141"]
[WhiteElo "1825"]
[BlackElo "1521"]

1. e4 {[%clk 01:30:59]} {[%emt 00:00:01]} e5 {[%clk 01:30:46]} {[%emt
00:00:14]} 2. Nf3 {[%clk 01:31:22]} {[%emt 00:00:06]} Nc6 {[%clk 01:30:56]}
{[%emt 00:00:21]} 3. Bb5 {[%clk 01:31:13]} {[%emt 00:00:38]} a6 {[%clk
01:31:03]} {[%emt 00:00:24]} 4. Ba4 {[%clk 01:30:12]} {[%emt 00:01:32]} Nf6
{[%clk 01:31:24]} {[%emt 00:00:08]} 5. O-O {[%clk 01:30:30]} {[%emt 00:00:11]}
Be7 {[%clk 01:31:14]} {[%emt 00:00:40]} 6. d3 {[%clk 01:30:22]} {[%emt
00:00:38]} b5 {[%clk 01:30:38]} {[%emt 00:01:07]} 7. Bb3 {[%clk 01:30:38]}
{[%emt 00:00:14]} O-O {[%clk 01:31:01]} {[%emt 00:00:07]} 8. a4 {[%clk
01:31:03]} {[%emt 00:00:05]} Bb7 {[%clk 01:30:53]} {[%emt 00:00:38]} 9. Nc3
{[%clk 01:30:22]} {[%emt 00:01:10]} b4 {[%clk 01:22:34]} {[%emt 00:08:49]} 10.
Nd5 {[%clk 01:29:32]} {[%emt 00:01:20]} a5 {[%clk 01:22:49]} {[%emt 00:00:16]}
11. Re1 {[%clk 01:19:59]} {[%emt 00:10:03]} Nd4 {[%clk 01:12:47]} {[%emt
00:10:32]} 12. Nxd4 {[%clk 01:19:07]} {[%emt 00:01:22]} exd4 {[%clk 01:13:11]}
{[%emt 00:00:06]} 13. Nxe7+ {[%clk 01:17:11]} {[%emt 00:02:26]} Qxe7 {[%clk
01:13:35]} {[%emt 00:00:06]} 14. Bg5 {[%clk 01:16:16]} {[%emt 00:01:25]} h6
{[%clk 01:13:03]} {[%emt 00:01:01]} 15. Bh4 {[%clk 01:14:44]} {[%emt 00:02:02]}
Qd6 {[%clk 01:09:07]} {[%emt 00:04:27]} 16. Qf3 {[%clk 01:09:51]} {[%emt
00:05:22]} Ra6 {[%clk 00:49:47]} {[%emt 00:19:51]} 17. Bc4 {[%clk 01:04:28]}
{[%emt 00:05:53]} Rb6 {[%clk 00:45:40]} {[%emt 00:04:37]} 18. Qf5 {[%clk
00:53:31]} {[%emt 00:11:26]} c5 {[%clk 00:40:01]} {[%emt 00:06:10]} 19. f3
{[%clk 00:50:58]} {[%emt 00:03:03]} Nh7 {[%clk 00:37:53]} {[%emt 00:02:38]} 20.
Bg3 {[%clk 00:42:21]} {[%emt 00:09:07]} Qe7 {[%clk 00:35:17]} {[%emt 00:03:06]}
21. Qe5 {[%clk 00:41:33]} {[%emt 00:01:16]} Qxe5 {[%clk 00:33:46]} {[%emt
00:02:03]} 22. Bxe5 {[%clk 00:41:57]} {[%emt 00:00:06]} d6 {[%clk 00:34:07]}
{[%emt 00:00:09]} 23. Bg3 {[%clk 00:42:02]} {[%emt 00:00:24]} Nf6 {[%clk
00:29:13]} {[%emt 00:05:25]} 24. e5 {[%clk 00:41:44]} {[%emt 00:00:48]} Nh5
{[%clk 00:28:22]} {[%emt 00:01:21]} 25. exd6 {[%clk 00:35:24]} {[%emt
00:06:49]} Nxg3 {[%clk 00:28:44]} {[%emt 00:00:09]} 26. hxg3 {[%clk 00:35:47]}
{[%emt 00:00:06]} Rxd6 {[%clk 00:26:10]} {[%emt 00:03:05]} 27. Re5 {[%clk
00:36:06]} {[%emt 00:00:11]} Rc8 {[%clk 00:23:31]} {[%emt 00:03:08]} 28. Rae1
{[%clk 00:35:49]} {[%emt 00:00:48]} Kf8 {[%clk 00:20:30]} {[%emt 00:03:31]} 29.
Bxf7 {[%clk 00:34:34]} {[%emt 00:01:44]} Kxf7 {[%clk 00:20:11]} {[%emt
00:00:50]} 30. Re7+ {[%clk 00:35:03]} {[%emt 00:00:01]} Kf6 {[%clk 00:20:30]}
{[%emt 00:00:09]} 31. Rxb7 {[%clk 00:35:24]} {[%emt 00:00:11]} c4 {[%clk
00:18:19]} {[%emt 00:02:40]} 32. Kf2 {[%clk 00:23:54]} {[%emt 00:12:01]} cxd3
{[%clk 00:17:39]} {[%emt 00:01:10]} 33. cxd3 {[%clk 00:24:22]} Rdc6 {[%clk
00:14:11]} {[%emt 00:03:58]} 34. f4 {[%clk 00:22:30]} {[%emt 00:02:22]} Rc2+
{[%clk 00:13:39]} {[%emt 00:01:03]} 35. Re2 {[%clk 00:22:22]} {[%emt 00:00:38]}
Rxe2+ 36. Kxe2 {[%clk 00:22:51]} Rc2+ {[%clk 00:14:05]} {[%emt 00:00:10]} 37.
Kf3 {[%clk 00:23:19]} Rxb2 {[%clk 00:14:26]} {[%emt 00:00:09]} 38. Rb5 {[%clk
00:23:14]} {[%emt 00:00:35]} Rb1 {[%clk 00:13:37]} {[%emt 00:01:20]} 39. Ke4
{[%clk 00:22:28]} {[%emt 00:01:15]} Rg1 {[%clk 00:09:34]} {[%emt 00:04:32]} 40.
Rxa5 {[%clk 00:22:07]} {[%emt 00:00:53]} Rxg2 {[%clk 00:09:40]} {[%emt
00:00:24]} 41. Rb5 {[%clk 00:22:03]} {[%emt 00:00:33]} Rxg3 {[%clk 00:08:28]}
{[%emt 00:01:43]} 42. Rxb4 {[%clk 00:22:30]} {[%emt 00:00:03]} h5 {[%clk
00:08:23]} {[%emt 00:00:34]} 43. Rb6+ {[%clk 00:19:52]} {[%emt 00:03:08]} Ke7
{[%clk 00:08:08]} {[%emt 00:00:45]} 44. Rb5 {[%clk 00:16:59]} {[%emt 00:03:23]}
g6 {[%clk 00:07:04]} {[%emt 00:01:35]} 45. Rg5 {[%clk 00:14:46]} {[%emt
00:02:43]} Rxg5 {[%clk 00:07:20]} {[%emt 00:00:14]} 46. fxg5 {[%clk 00:15:08]}
{[%emt 00:00:08]} Ke6 {[%clk 00:05:44]} {[%emt 00:02:05]} 47. Kxd4 {[%clk
00:13:09]} {[%emt 00:02:29]} Kd6 {[%clk 00:06:03]} {[%emt 00:00:12]} 48. Ke4
{[%clk 00:13:15]} {[%emt 00:00:24]} Kc6 {[%clk 00:06:12]} {[%emt 00:00:21]} 49.
d4 {[%clk 00:13:21]} {[%emt 00:00:23]} h4 {[%clk 00:05:35]} {[%emt 00:01:08]}
50. Kf4 {[%clk 00:11:38]} {[%emt 00:02:13]} 1-0

[Event "The Schackveckan 2023: Göteborg open"]
[Site "Göteborgs schackcentrum, Vegagatan 20, Gothenburg, Sweden"]
[Date "2023.08.12"]
[Round "5.17"]
[White "Imani Lasaki, Hamed"]
[Black "Kosmidis, Thomas"]
[Result "0-1"]
[TimeControl "15 minutes + 5 seconds per move from move one (Round 1 - 4) / 90 minutes + 30 seconds per move from move one (Round 5 - 8)"]
[WhiteFideId "1766970"]
[BlackFideId "1753380"]
[WhiteElo "1624"]
[BlackElo "1721"]

1. e4 {[%clk 01:30:57]} {[%emt 00:00:02]} c6 {[%clk 01:30:52]} {[%emt
00:00:09]} 2. Nc3 {[%clk 01:28:28]} {[%emt 00:03:00]} d5 {[%clk 01:31:01]}
{[%emt 00:00:21]} 3. exd5 {[%clk 01:28:19]} {[%emt 00:00:39]} cxd5 {[%clk
01:31:20]} {[%emt 00:00:11]} 4. d4 {[%clk 01:28:40]} {[%emt 00:00:09]} Nc6
{[%clk 01:31:33]} {[%emt 00:00:16]} 5. Nf3 {[%clk 01:28:32]} {[%emt 00:00:38]}
Bg4 {[%clk 01:30:58]} {[%emt 00:01:05]} 6. Be2 {[%clk 01:24:20]} {[%emt
00:04:42]} e6 {[%clk 01:30:10]} {[%emt 00:01:17]} 7. h3 {[%clk 01:23:04]}
{[%emt 00:01:47]} Bh5 {[%clk 01:29:47]} {[%emt 00:00:53]} 8. a3 {[%clk
01:23:14]} {[%emt 00:00:21]} Bd6 {[%clk 01:28:00]} {[%emt 00:02:16]} 9. Be3
{[%clk 01:15:41]} {[%emt 00:08:03]} Nf6 {[%clk 01:24:29]} {[%emt 00:04:01]} 10.
Nb5 {[%clk 01:02:06]} {[%emt 00:14:05]} Bb8 {[%clk 01:21:24]} {[%emt 00:03:35]}
11. c4 {[%clk 00:57:43]} {[%emt 00:04:53]} a6 {[%clk 01:20:00]} {[%emt
00:01:54]} 12. Nc3 {[%clk 00:56:53]} {[%emt 00:01:20]} Ba7 {[%clk 01:06:10]}
{[%emt 00:14:20]} 13. cxd5 {[%clk 00:56:07]} {[%emt 00:01:16]} Nxd5 {[%clk
01:05:44]} {[%emt 00:00:56]} 14. Nxd5 {[%clk 00:55:41]} {[%emt 00:00:56]} Qxd5
{[%clk 01:05:13]} {[%emt 00:01:01]} 15. Rc1 {[%clk 00:54:19]} {[%emt 00:01:50]}
O-O {[%clk 01:05:25]} {[%emt 00:00:20]} 16. Bc4 {[%clk 00:52:29]} {[%emt
00:02:20]} Qd6 {[%clk 01:04:53]} {[%emt 00:00:54]} 17. Qd2 {[%clk 00:44:17]}
{[%emt 00:08:50]} Bxf3 {[%clk 01:02:50]} {[%emt 00:02:32]} 18. gxf3 {[%clk
00:43:16]} {[%emt 00:01:32]} Nxd4 {[%clk 01:01:59]} {[%emt 00:01:22]} 19. Be2
{[%clk 00:43:15]} {[%emt 00:00:29]} Rfd8 {[%clk 01:01:34]} {[%emt 00:00:54]} 20.
Rg1 {[%clk 00:40:55]} {[%emt 00:02:52]} g6 {[%clk 00:57:59]} {[%emt 00:04:05]}
21. Bh6 {[%clk 00:38:52]} {[%emt 00:02:32]} Qh2 {[%clk 00:55:48]} {[%emt
00:02:41]} 22. Kf1 {[%clk 00:35:46]} {[%emt 00:03:36]} Nf5 {[%clk 00:51:47]}
{[%emt 00:04:31]} 23. Rg2 {[%clk 00:33:44]} {[%emt 00:02:33]} Qh1+ {[%clk
00:52:01]} {[%emt 00:00:16]} 24. Rg1 {[%clk 00:34:07]} {[%emt 00:00:06]} Qxh3+
{[%clk 00:52:22]} {[%emt 00:00:10]} 25. Ke1 {[%clk 00:31:17]} {[%emt 00:03:19]}
Rxd2 {[%clk 00:51:19]} {[%emt 00:01:34]} 26. Bxd2 {[%clk 00:31:45]} {[%emt
00:00:02]} Qh2 {[%clk 00:50:39]} {[%emt 00:01:09]} 27. Rf1 {[%clk 00:32:00]}
{[%emt 00:00:16]} Qe5 {[%clk 00:48:38]} {[%emt 00:02:26]} 28. Bc3 {[%clk
00:30:22]} {[%emt 00:02:13]} Bd4 {[%clk 00:48:38]} {[%emt 00:00:29]} 29. Rg1
{[%clk 00:29:40]} {[%emt 00:01:13]} Bxc3+ {[%clk 00:48:09]} {[%emt 00:00:59]}
30. Rxc3 {[%clk 00:30:04]} {[%emt 00:00:06]} Rd8 {[%clk 00:47:49]} {[%emt
00:00:44]} 31. Rg4 {[%clk 00:30:01]} {[%emt 00:00:39]} Qh2 {[%clk 00:45:10]}
{[%emt 00:03:09]} 32. Bf1 {[%clk 00:28:59]} {[%emt 00:01:32]} Qd6 {[%clk
00:44:04]} {[%emt 00:01:27]} 33. Rd3 {[%clk 00:28:46]} {[%emt 00:00:52]} Qb8
{[%clk 00:42:58]} {[%emt 00:01:36]} 34. Rb4 {[%clk 00:27:44]} {[%emt 00:01:32]}
Rxd3 {[%clk 00:42:24]} {[%emt 00:01:05]} 35. Bxd3 {[%clk 00:28:12]} {[%emt
00:00:01]} Qc7 {[%clk 00:41:24]} {[%emt 00:01:24]} 36. Rc4 {[%clk 00:26:42]}
{[%emt 00:02:06]} Qa5+ {[%clk 00:38:45]} {[%emt 00:03:08]} 37. Kf1 {[%clk
00:26:06]} {[%emt 00:01:07]} Qd2 {[%clk 00:37:45]} {[%emt 00:01:27]} 38. Bxf5
{[%clk 00:24:59]} {[%emt 00:01:40]} exf5 {[%clk 00:37:37]} {[%emt 00:00:39]} 39.
Rb4 {[%clk 00:25:19]} {[%emt 00:00:10]} b5 {[%clk 00:37:38]} {[%emt 00:00:28]}
40. Kg2 {[%clk 00:25:38]} {[%emt 00:00:11]} h5 {[%emt 00:00:27]} 41. Kg3 {[%emt
00:00:13]} Kg7 {[%clk 00:37:05]} {[%emt 00:00:22]} 42. f4 {[%clk 00:25:55]}
{[%emt 00:00:14]} Qe2 {[%clk 00:36:48]} {[%emt 00:00:46]} 43. Rb3 {[%clk
00:25:34]} {[%emt 00:00:53]} Qg4+ {[%clk 00:36:36]} {[%emt 00:00:40]} 44. Kh2
{[%clk 00:26:02]} {[%emt 00:00:02]} Qxf4+ {[%clk 00:36:19]} {[%emt 00:00:48]}
45. Kg2 {[%clk 00:26:12]} {[%emt 00:00:19]} g5 {[%clk 00:36:24]} {[%emt
00:00:25]} 46. Rf3 {[%clk 00:26:40]} {[%emt 00:00:03]} Qe4 {[%clk 00:36:09]}
{[%emt 00:00:45]} 0-1